bitfinex/quotes_ETHUSD_20260106
["timestamp","ask_amount","ask_price","bid_price","bid_amount"]
[1767708674275,0.90942102,3256.9,3255.6,0.0307163]
[1767708674479,6.14099728,3256.8,3255.4,0.03071819]
[1767708674680,6.94499728,3256.8,3255.4,0.03071819]
[1767708674987,0.28570253,3256.7,3255.2,3.10270027]
[1767708675159,0.28570253,3256.6,3255.1,3.83]
[1767708675359,10.92491694,3256.8,3255.1,7.68927807]
[1767708675692,10.92491694,3256.8,3255.6,3.07162544]
[1767708675693,0.804,3256.7,3255.6,3.07162544]
[1767708676446,3.07068721,3256.6,3255.6,3.07162544]
[1767708676646,0.804,3256.5,3255.6,3.07162544]
[1767708676848,0.002,3257.0,3255.7,0.03071536]
[1767708677048,0.002,3257.0,3255.8,0.93894571]
[1767708677251,0.002,3257.0,3255.9,0.96965918]
[1767708677445,3.06865699,3257.7,3255.9,0.96965918]
[1767708677649,0.804,3257.6,3255.9,0.96965918]
[1767708677879,1.1912657,3257.5,3255.9,0.96965918]
[1767708678378,0.804,3257.6,3255.9,0.96965918]
[1767708678551,0.804,3257.6,3256.1,0.93894571]
[1767708678880,0.804,3257.6,3256.2,0.96965635]
[1767708679245,3.07202008,3258.4,3256.4,0.93894571]
[1767708679468,1.22496508,3258.3,3256.4,0.93894571]
[1767708679667,0.90942102,3259.8,3257.5,0.93894571]
[1767708679876,0.93108748,3259.4,3256.6,0.93894571]
[1767708680050,0.28513966,3259.3,3256.9,0.93894571]
[1767708680250,1.08911782,3259.2,3256.9,0.93894571]
[1767708680460,0.82566646,3259.1,3256.9,0.93894571]
[1767708680688,0.02166646,3259.3,3257.1,0.93894571]
[1767708680689,6.94085178,3259.0,3257.1,0.93894571]
[1767708680860,6.94085178,3259.0,3257.0,6.1406202]
[1767708680861,6.13685178,3259.0,3257.3,0.93894571]
[1767708681050,0.804,3258.9,3257.3,0.93894571]
[1767708681250,6.13685178,3259.0,3257.3,0.93894571]
[1767708681251,0.804,3258.8,3257.3,0.93894571]
[1767708681691,3.06842589,3259.0,3257.3,0.93894571]
[1767708681864,0.804,3258.7,3257.3,0.93894571]
[1767708682053,0.804,3258.9,3257.5,0.93894571]
[1767708682253,0.804,3258.9,3257.2,0.70795659]
[1767708682571,0.90942102,3259.2,3257.2,0.70795659]
[1767708682572,6.13666772,3259.1,3257.4,6.13986614]
[1767708682768,0.804,3258.8,3257.4,7.07881185]
[1767708682973,0.804,3258.8,3257.5,1.6468269]
[1767708683153,0.804,3258.8,3257.5,0.70788119]
[1767708683349,0.804,3258.8,3257.3,6.14003593]
[1767708683754,3.06833174,3259.1,3257.3,7.07898164]
[1767708683991,3.06822994,3259.3,3257.7,0.93894571]
[1767708684193,0.00099897,3258.7,3257.7,0.93894571]
[1767708684349,0.00099897,3258.7,3257.6,0.02166646]
[1767708684350,0.804,3259.1,3257.9,0.93894571]
[1767708684551,0.002,3259.0,3257.9,0.93894571]
[1767708684772,3.72324663,3259.1,3258.0,3.06936771]
[1767708684980,3.72324663,3259.1,3257.9,0.93894571]
[1767708684981,0.22217014,3259.0,3257.9,3.06944555]
[1767708685980,0.22217014,3259.0,3257.5,0.03069838]
[1767708686384,1.13159116,3259.0,3257.5,0.03069838]
[1767708686560,1.13159116,3259.0,3257.3,0.03070027]
[1767708686759,9.20584263,3258.8,3257.3,0.03070027]
[1767708686963,0.804,3258.7,3257.3,0.03070027]
[1767708687572,0.804,3258.7,3257.2,0.03070121]
[1767708687774,0.804,3258.7,3257.3,3.07001365]
[1767708688090,0.804,3258.7,3257.2,3.10076754]
[1767708688258,0.804,3258.7,3257.2,0.03070121]
[1767708688784,10.11582867,3258.6,3257.0,3.0702427]
[1767708688984,10.11582867,3258.6,3257.1,0.03070215]
[1767708689193,7.04702612,3258.6,3257.2,3.07009209]
[1767708689403,7.04702612,3258.6,3257.3,0.34077969]
[1767708689703,0.804,3258.5,3257.3,0.34077969]
[1767708690271,0.804,3258.4,3257.3,0.34077969]
[1767708690498,3.06833174,3259.1,3257.3,0.36244615]
[1767708690692,3.06852005,3258.9,3257.4,6.13986614]
[1767708690892,3.06852005,3258.9,3257.5,0.77482418]
[1767708691407,0.99757413,3259.8,3257.6,0.97201225]
[1767708691608,4.15592562,3259.7,3257.8,0.97201225]
[1767708691814,4.15592562,3259.7,3257.9,0.03069461]
[1767708691815,6.93958188,3259.7,3257.9,0.03069461]
[1767708692711,6.13558188,3259.7,3258.0,6.13873542]
[1767708693015,0.804,3259.6,3258.1,0.03069273]
[1767708693774,6.13558188,3259.7,3258.1,0.03069273]
[1767708693974,3.0679552,3259.5,3258.2,3.0691793]
[1767708694302,3.0679552,3259.5,3258.3,0.34067805]
[1767708694303,0.804,3259.4,3258.3,0.34067805]
[1767708694674,0.804,3259.3,3258.3,0.34067805]
[1767708695074,3.0679552,3259.5,3258.3,0.34067805]
[1767708695378,0.804,3259.4,3258.3,0.34067805]
[1767708695903,0.804,3259.3,3258.3,0.34067805]
[1767708696110,6.94041504,3259.3,3258.2,0.03069179]
[1767708696328,3.87220752,3259.3,3258.2,3.09981274]
[1767708696487,7.93798917,3259.3,3257.9,3.06939261]
[1767708696812,0.99757413,3259.2,3257.9,3.06936834]
[1767708697015,0.99757413,3259.2,3258.0,3.06936403]
[1767708697576,0.99757413,3259.2,3257.5,3.07076797]
[1767708697801,0.99757413,3259.0,3257.7,3.06959388]
[1767708698100,6.9410401,3258.9,3257.8,0.03069556]
[1767708698277,6.9410401,3258.9,3257.6,3.0697174]
[1767708698470,6.9410401,3258.9,3257.6,3.68685044]
[1767708698906,7.93861423,3258.9,3257.6,0.61713304]
[1767708699202,7.13461423,3258.9,3257.6,0.61713304]
[1767708699407,0.804,3258.8,3257.6,0.61713304]
[1767708699603,1.80157413,3258.8,3257.6,0.61713304]
[1767708700207,3.87270838,3258.7,3257.5,3.0707954]
[1767708700413,3.87270838,3258.7,3257.5,3.10149378]
[1767708700610,3.06870838,3258.7,3257.5,3.0707954]
[1767708700912,0.804,3258.6,3257.5,3.0707954]
[1767708701084,0.804,3258.6,3257.5,0.001]
[1767708702001,0.99757413,3258.5,3257.5,0.001]
[1767708702195,0.99757413,3258.3,3257.5,0.001]
[1767708702597,0.804,3258.2,3257.5,0.001]
[1767708702793,3.06899091,3258.4,3257.5,0.001]
[1767708702986,0.804,3258.3,3257.5,0.001]
[1767708703190,0.804,3258.2,3257.5,0.001]
[1767708703603,1.80157413,3258.2,3257.5,0.001]
[1767708703803,0.99757413,3258.1,3257.5,0.001]
[1767708704204,3.03933681,3258.0,3257.5,0.001]
[1767708705310,0.99757413,3257.9,3257.5,0.001]
[1767708705487,0.804,3257.8,3257.5,0.001]
[1767708705684,0.804,3257.7,3257.5,0.001]
[1767708705885,0.99757413,3258.2,3256.9,0.03070404]
[1767708706209,4.06675524,3258.2,3257.0,6.1406202]
[1767708706409,4.06675524,3258.2,3257.1,0.03070215]
[1767708706410,0.804,3258.1,3257.1,0.03070215]
[1767708706708,0.804,3258.1,3257.0,0.0307031]
[1767708706709,1.80157413,3258.1,3257.0,0.0307031]
[1767708706910,0.99757413,3258.0,3257.0,0.0307031]
[1767708707112,0.99757413,3258.0,3256.5,0.03070781]
[1767708707308,0.99757413,3258.0,3256.9,3.07039401]
[1767708707607,0.804,3257.9,3257.0,0.0307031]
[1767708709002,0.99757413,3257.9,3257.0,0.0307031]
[1767708709201,0.804,3257.8,3257.0,3.07030979]
[1767708709409,0.804,3257.7,3257.0,3.07030979]
[1767708709716,0.804,3257.7,3257.1,0.31010138]
[1767708710086,0.804,3257.7,3256.8,3.0704575]
[1767708710286,0.804,3257.7,3256.4,1.002721]
[1767708711195,0.99757413,3258.0,3256.5,6.14156302]
[1767708711196,4.06696898,3258.0,3256.5,6.14156302]
[1767708711389,0.804,3257.9,3256.6,0.03070687]
[1767708711589,4.06696898,3258.0,3257.3,0.001]
[1767708711790,0.804,3257.9,3257.3,0.001]
[1767708713321,0.804,3257.8,3257.3,0.001]
[1767708714196,0.99757413,3257.7,3257.3,0.001]
[1767708714390,0.99757413,3257.7,3256.4,0.03070875]
[1767708714595,0.99757413,3257.7,3256.4,3.10155001]
[1767708714919,0.99757413,3257.7,3256.4,3.07084126]
[1767708715122,0.99757413,3257.5,3256.5,0.30708413]
[1767708715419,0.99757413,3257.3,3256.3,3.07094164]
[1767708715619,0.804,3257.2,3256.3,3.0709334]
[1767708715918,0.804,3257.2,3256.4,3.0708201]
[1767708716246,0.804,3257.2,3256.2,3.07102644]
[1767708716423,0.804,3257.2,3256.3,0.61421543]
[1767708716723,0.9404312,3257.1,3256.1,0.03071158]
[1767708717021,0.9404312,3257.1,3255.9,3.07134236]
[1767708717527,4.0107413,3257.0,3255.9,3.07134236]
[1767708717690,7.0810514,3257.0,3255.8,3.10211784]
[1767708717895,0.9404312,3256.9,3255.9,0.31021178]
[1767708718092,3.07022464,3257.1,3255.9,0.31021178]
[1767708718093,0.804,3256.8,3255.9,0.31021178]
[1767708718420,3.0702502,3257.1,3255.9,0.31021178]
[1767708718620,0.02166646,3258.3,3256.0,0.97077329]
[1767708718621,0.93342398,3257.7,3256.0,0.97077329]
[1767708718820,0.80299897,3257.6,3256.4,0.97077329]
[1767708719122,0.93342398,3257.7,3256.4,0.97077329]
[1767708719322,0.804,3257.5,3256.5,0.03070781]
[1767708719528,0.804,3257.5,3256.6,3.07068721]
[1767708719824,0.804,3257.5,3256.7,0.61721713]
[1767708720002,3.87384346,3257.5,3256.7,0.61721713]
[1767708720211,3.06976909,3257.6,3256.7,0.61721713]
[1767708720412,0.804,3257.5,3256.7,0.61721713]
[1767708720818,6.13873542,3258.0,3256.7,0.61721713]
[1767708721025,4.00973091,3258.1,3256.7,1.00147921]
[1767708721209,0.804,3258.0,3256.7,1.00147921]
[1767708721635,4.00970488,3258.1,3256.8,6.14099728]
[1767708722003,0.804,3258.0,3256.8,3.07049864]
[1767708722205,0.804,3258.0,3256.8,6.14099728]
[1767708722512,0.98641493,3260.2,3259.8,0.02166646]
[1767708722725,0.003,3261.3,3259.5,0.02166646]
[1767708722726,0.98641493,3261.1,3261.0,0.02166646]
[1767708722929,3.06325624,3264.5,3261.0,0.92253578]
[1767708723132,0.02166646,3265.1,3261.0,0.92253578]
[1767708723133,0.804,3264.4,3263.9,0.92253578]
[1767708723306,0.98641493,3266.2,3263.9,0.92253578]
[1767708723508,0.23729457,3265.7,3264.7,0.02166646]
[1767708723810,3.06122043,3266.7,3264.7,6.12612228]
[1767708724009,0.98641493,3269.9,3267.6,0.02166646]
[1767708724220,0.98641493,3269.9,3266.9,0.02166646]
[1767708724221,3.06136362,3268.4,3266.9,0.02166646]
[1767708724430,0.02166646,3268.3,3266.3,6.2612997]
[1767708724632,0.98641493,3268.3,3266.4,0.62612997]
[1767708724802,0.98641493,3268.3,3265.4,6.49665702]
[1767708724803,0.804,3268.2,3265.6,0.05]
[1767708725130,6.12097287,3268.4,3266.1,0.02166646]
[1767708725430,3.05866277,3269.5,3266.1,0.02166646]
[1767708725431,6.11452504,3270.9,3268.7,0.05]
[1767708725631,7.10150083,3270.6,3268.2,0.02166646]
[1767708725832,0.98641493,3271.4,3269.5,0.02166646]
[1767708726033,0.98641493,3271.4,3268.5,0.02166646]
[1767708726034,0.98641493,3270.9,3267.7,0.02166646]
[1767708726242,0.02166646,3269.8,3267.5,0.05]
[1767708726451,0.02166646,3269.8,3266.9,0.02166646]
[1767708726452,0.82466646,3269.7,3267.1,0.05]
[1767708726740,0.02166646,3271.6,3270.0,0.84633292]
[1767708726961,0.02166646,3270.8,3269.7,0.05]
[1767708727104,0.98641493,3270.2,3267.6,0.05]
[1767708727448,0.02166646,3271.0,3267.2,0.3110828]
[1767708727449,1.03227038,3271.4,3269.0,0.02166646]
[1767708727687,0.003,3272.8,3270.4,0.02166646]
[1767708727688,0.00579859,3272.2,3270.4,0.02166646]
[1767708727974,0.98641493,3274.3,3270.6,0.92253578]
[1767708728186,0.98641493,3275.1,3272.5,0.02166646]
[1767708728354,0.98641493,3275.1,3271.7,0.02166646]
[1767708728355,0.98641493,3275.0,3272.9,0.02166646]
[1767708728544,0.803,3275.5,3272.7,0.02166646]
[1767708728752,0.98641493,3275.1,3272.1,0.02166646]
[1767708729042,0.98641493,3275.1,3270.7,0.02166646]
[1767708729043,0.98641493,3276.1,3273.6,0.02166646]
[1767708729242,3.05122029,3277.4,3275.4,0.02166646]
[1767708729243,3.05119912,3277.4,3275.4,0.02166646]
[1767708729452,3.04980328,3278.9,3276.8,0.02166646]
[1767708729642,3.05147844,3277.1,3275.3,0.92253578]
[1767708729900,3.05147844,3277.1,3273.3,3.07665802]
[1767708729901,0.02166646,3275.4,3273.3,0.92253578]
[1767708730040,0.802,3275.3,3273.4,9.18644923]
[1767708730244,3.05147844,3277.1,3274.3,0.02166646]
[1767708730469,0.802,3277.0,3274.5,0.02166646]
[1767708730677,0.802,3276.9,3274.6,0.51728892]
[1767708730879,0.02166646,3275.2,3272.3,0.92253578]
[1767708731081,0.02166646,3274.9,3272.3,0.92253578]
[1767708731283,1.16808139,3276.1,3272.6,0.02166646]
[1767708731452,0.802,3276.0,3273.1,3.0551844]
[1767708731663,9.15806823,3275.8,3273.4,0.02166646]
[1767708731861,9.15806823,3275.8,3272.7,0.02166646]
[1767708731862,0.802,3275.7,3272.7,0.02166646]
[1767708732075,6.10537882,3275.8,3273.5,0.02166646]
[1767708732277,3.05268941,3275.8,3274.2,0.02166646]
[1767708732455,3.05268941,3275.8,3273.7,0.02166646]
[1767708732456,0.802,3275.7,3273.7,0.02166646]
[1767708732654,6.10537882,3275.8,3272.6,9.16699001]
[1767708732868,0.801,3275.7,3273.8,0.02166646]
[1767708733175,0.801,3275.7,3273.3,0.02166646]
[1767708733343,6.1031431,3277.0,3274.2,0.02166646]
[1767708733545,9.15471465,3277.0,3274.3,0.02166646]
[1767708733844,9.15471465,3277.0,3274.0,0.02166646]
[1767708733845,0.801,3276.9,3274.4,0.02166646]
[1767708734046,9.51498137,3278.0,3274.4,0.02166646]
[1767708734047,3.05054757,3278.1,3275.0,0.02166646]
[1767708734374,0.801,3278.0,3275.4,0.02166646]
[1767708734679,0.98641493,3277.1,3275.9,0.02166646]
[1767708734885,0.98641493,3278.1,3276.3,0.02166646]
[1767708735178,0.801,3278.0,3276.2,0.02441108]
[1767708735374,9.14940984,3278.9,3276.9,0.02441108]
[1767708735577,0.801,3278.8,3276.4,0.02441108]
[1767708735749,9.95096796,3278.7,3276.6,0.02441108]
[1767708735944,3.04987467,3278.9,3276.6,0.92253578]
[1767708736176,0.801,3278.6,3276.7,0.02441108]
[1767708736673,9.14962401,3278.9,3276.5,0.02441108]
[1767708736674,0.8,3278.5,3276.5,0.02441108]
[1767708736842,0.8,3278.5,3276.3,0.02441108]
[1767708737047,12.19949868,3278.9,3276.2,0.02141108]
[1767708737048,15.24937335,3278.9,3276.2,0.02141108]
[1767708737249,12.19942729,3278.9,3276.3,0.02441108]
[1767708737447,5.97467795,3278.9,3277.2,0.02441108]
[1767708737660,0.00596117,3279.0,3277.2,0.02441108]
[1767708737661,0.00596117,3279.0,3277.7,0.02441108]
[1767708737876,0.00596117,3279.0,3277.6,0.02441108]
[1767708737877,0.8,3278.9,3277.6,0.02441108]
[1767708738090,0.8,3278.9,3277.0,0.02441108]
[1767708738254,6.10538566,3279.0,3277.0,0.02441108]
[1767708738255,0.8,3278.8,3277.2,0.02441108]
[1767708738455,0.8,3278.7,3277.2,0.02441108]
[1767708738683,0.8,3278.7,3277.4,0.02441108]
[1767708738979,0.002,3279.4,3278.9,0.02441108]
[1767708739166,0.002,3279.4,3276.5,0.02441108]
[1767708739167,0.8,3279.3,3276.5,0.02441108]
[1767708739366,0.02441108,3278.6,3275.7,0.02441108]
[1767708739676,9.14996796,3278.7,3275.9,0.02441108]
[1767708739890,0.8,3278.6,3275.7,0.02441108]
[1767708740185,0.8,3278.6,3276.2,0.02441108]
[1767708740382,0.02746289,3278.2,3275.0,0.02746289]
[1767708740680,0.02746289,3278.2,3274.3,0.92253578]
[1767708740681,0.02746289,3277.6,3275.1,0.03053341]
[1767708740861,0.02746289,3277.4,3275.1,0.03053341]
[1767708741057,0.02746289,3276.9,3273.5,0.02746289]
[1767708741280,0.83053356,3276.8,3274.1,0.02746289]
[1767708741479,0.83053356,3276.8,3273.9,0.02746289]
[1767708741480,0.02746289,3276.7,3274.2,0.03054181]
[1767708741775,0.02746289,3276.7,3273.5,0.02746289]
[1767708741776,15.2606519,3276.4,3273.8,0.03054554]
[1767708741978,0.02746289,3276.2,3273.8,0.03054554]
[1767708742183,0.02746289,3275.8,3272.8,0.02441108]
[1767708742485,0.02746289,3275.8,3270.9,6.46427366]
[1767708742486,3.767379,3274.7,3271.5,3.233]
[1767708742686,6.46427366,3274.3,3271.6,0.02746289]
[1767708742861,5.35104789,3274.2,3271.3,0.02746289]
[1767708743063,1.17387782,3274.0,3271.1,0.02746289]
[1767708743278,4.135,3273.4,3270.9,0.02746289]
[1767708743502,1.01387782,3274.0,3270.7,0.02746289]
[1767708743503,0.98641493,3274.0,3271.3,0.02746289]
[1767708743664,12.21821736,3273.8,3271.6,0.02746289]
[1767708743864,9.16366302,3273.8,3271.5,0.02746289]
[1767708744064,12.21821736,3273.8,3271.9,0.02746289]
[1767708744357,0.799,3273.7,3271.2,0.02746289]
[1767708744566,0.799,3273.7,3271.5,0.02746289]
[1767708744792,0.799,3273.7,3270.7,0.02746289]
[1767708744793,0.02746289,3273.5,3270.7,0.02746289]
[1767708745004,0.02746289,3273.5,3270.5,0.02746289]
[1767708745299,0.02746289,3273.3,3270.5,0.02746289]
[1767708745478,8.193802,3273.4,3270.6,0.02746289]
[1767708745689,15.2765047,3273.0,3270.1,0.02746289]
[1767708746001,15.2765047,3273.0,3270.3,0.02746289]
[1767708746189,0.799,3272.9,3270.3,0.02746289]
[1767708746496,0.799,3272.8,3271.6,0.02746289]
[1767708746722,0.799,3272.8,3271.4,0.02746289]
[1767708747012,0.799,3272.8,3270.9,0.02746289]
[1767708747194,0.799,3272.8,3270.7,0.02746289]
[1767708747493,0.02746289,3273.9,3270.7,0.02746289]
[1767708747494,3.05444136,3274.0,3271.1,0.02746289]
[1767708747707,3.21372212,3274.7,3271.7,0.02746289]
[1767708747708,3.05408789,3274.3,3271.7,0.02746289]
[1767708747868,0.799,3274.2,3271.7,0.02746289]
[1767708748257,0.799,3274.2,3270.7,0.02746289]
[1767708748258,0.02746289,3274.0,3270.7,0.02746289]
[1767708748605,0.02746289,3273.0,3269.8,0.001]
[1767708748754,6.46427366,3272.5,3269.8,0.001]
[1767708748958,0.02746289,3272.2,3269.8,0.001]
[1767708749156,0.02746289,3272.4,3269.8,0.001]
[1767708749386,0.02746289,3272.2,3269.8,0.001]
[1767708749567,0.799,3272.1,3269.8,0.001]
[1767708749877,9.16870413,3272.0,3271.2,0.001]
[1767708750168,0.799,3271.9,3269.8,0.02846289]
[1767708750362,0.799,3271.9,3270.0,0.02746289]
[1767708750560,0.799,3271.9,3269.8,0.001]
[1767708751187,0.799,3271.8,3269.8,0.001]
[1767708751491,6.11209582,3272.2,3269.9,0.02746289]
[1767708751793,0.799,3272.1,3270.1,0.02746289]
[1767708752019,12.24791993,3273.2,3270.1,6.14346185]
[1767708752172,0.02746289,3272.8,3270.1,3.05798851]
[1767708752359,0.02746289,3272.2,3269.8,0.001]
[1767708752560,0.02746289,3273.0,3269.8,0.001]
[1767708752561,6.11022852,3273.2,3270.4,0.02746289]
[1767708752870,0.82646289,3273.1,3270.1,6.115989]
[1767708753057,0.82646289,3273.1,3270.5,0.02746289]
[1767708753258,0.82646289,3273.1,3270.4,0.02746289]
[1767708753487,12.22045704,3273.2,3270.1,9.17399945]
[1767708753488,0.03819126,3273.0,3270.1,9.17399945]
[1767708753674,0.03819126,3273.0,3270.7,0.02746289]
[1767708753876,3.05548765,3272.8,3270.8,3.05735599]
[1767708754089,3.05360445,3274.9,3270.8,3.05735599]
[1767708754090,3.05483427,3273.5,3271.3,0.02746289]
[1767708754292,0.83718659,3273.4,3271.7,0.02746289]
[1767708754475,0.83718659,3273.4,3270.9,0.02746289]
[1767708754657,0.83718659,3273.4,3271.0,0.27139974]
[1767708754863,0.86464948,3273.4,3270.5,0.02746289]
[1767708755197,0.8,3273.3,3271.2,0.02746289]
[1767708755505,6.10929528,3273.7,3271.3,0.27150832]
[1767708755662,6.10929528,3273.7,3271.4,0.27150832]
[1767708755663,0.02746289,3273.4,3271.4,0.27150832]
[1767708755863,0.02746289,3273.4,3270.2,3.05789195]
[1767708755864,0.02746289,3273.0,3270.0,0.97400394]
[1767708756071,0.02746289,3272.8,3271.0,3.05713753]
[1767708756290,0.02746289,3272.6,3271.1,0.27200617]
[1767708756594,0.02746289,3272.6,3270.1,0.97400394]
[1767708756595,0.03819709,3272.5,3270.1,0.97400394]
[1767708756762,0.02746289,3273.2,3269.8,3.08673568]
[1767708756763,0.02746289,3273.0,3271.0,3.05716901]
[1767708756959,0.83719242,3272.9,3271.1,0.27228754]
[1767708757187,0.83719242,3272.9,3271.0,3.05716901]
[1767708757188,6.46427366,3274.9,3271.2,0.27263009]
[1767708757373,0.02746289,3273.7,3271.3,0.27263009]
[1767708757690,3.05430351,3274.1,3271.4,0.27263009]
[1767708757691,0.02746289,3273.8,3271.4,0.27263009]
[1767708757888,0.02746289,3273.8,3271.2,0.73609721]
[1767708757889,6.10966854,3273.5,3271.6,3.05660838]
[1767708758193,0.03818659,3273.4,3271.7,0.27263009]
[1767708758492,0.02746289,3274.1,3271.7,0.27263009]
[1767708758493,0.799,3273.3,3271.8,0.27263009]
[1767708758662,0.799,3273.2,3271.9,0.27263009]
[1767708758862,0.799,3273.2,3272.0,0.27263009]
[1767708759095,0.03817843,3274.1,3272.1,0.27263009]
[1767708759306,0.799,3274.0,3272.2,0.27263009]
[1767708759608,0.799,3274.0,3272.3,0.27263009]
[1767708759781,0.799,3274.0,3271.8,0.9197288]
[1767708759782,0.03818076,3273.9,3271.8,0.9197288]
[1767708759965,6.10910868,3273.8,3271.9,0.27240959]
[1767708760159,12.25639928,3273.8,3271.5,3.05669717]
[1767708760472,12.25639928,3273.8,3270.9,1.00146683]
[1767708760473,0.02746289,3273.5,3270.9,0.97400394]
[1767708760792,3.05455434,3273.8,3271.7,6.11302992]
[1767708760965,0.83718309,3273.7,3271.8,0.88392378]
[1767708761161,0.03818426,3273.6,3272.0,0.02746289]
[1767708761361,0.03818426,3273.6,3271.7,6.09787358]
[1767708761362,0.03818426,3273.6,3271.7,3.04135862]
[1767708761562,0.03818426,3273.6,3271.7,3.0565124]
[1767708761792,0.03818309,3273.7,3271.7,6.11302736]
[1767708761982,0.03818309,3273.7,3271.5,0.02746289]
[1767708761983,0.83718426,3273.6,3271.8,0.61130274]
[1767708762304,0.83718426,3273.6,3271.1,0.97400394]
[1767708762803,0.03818426,3273.6,3271.4,3.05673736]
[1767708762963,12.21672468,3274.2,3271.5,6.11338763]
[1767708763164,0.03818192,3273.8,3271.5,6.11338763]
[1767708763386,0.799,3273.7,3271.5,3.05668582]
[1767708763586,0.03818426,3273.6,3271.5,6.72473383]
[1767708763890,0.03818426,3273.6,3271.5,3.66803202]
[1767708764093,9.16450281,3273.5,3271.5,3.66803202]
[1767708764390,0.03818659,3273.4,3271.6,0.02746289]
[1767708764561,0.799,3273.3,3271.8,0.02746289]
[1767708764770,0.002,3274.3,3271.8,0.02746289]
[1767708764771,0.002,3274.3,3272.0,0.02746289]
[1767708764964,0.002,3274.3,3272.2,0.02746289]
[1767708764965,3.85319257,3274.2,3272.2,0.02746289]
[1767708765182,0.03817843,3274.1,3272.2,0.02746289]
[1767708765409,0.03617431,3274.1,3272.2,0.02746289]
[1767708765619,0.002,3273.6,3272.7,0.02746289]
[1767708765916,0.799,3274.0,3273.2,3.05511426]
[1767708766091,0.00099485,3274.6,3272.9,0.02746289]
[1767708766092,0.17751996,3274.3,3272.9,0.02746289]
[1767708766290,0.03817376,3274.5,3272.6,0.02746289]
[1767708766610,3.05481368,3274.6,3273.3,0.02746289]
[1767708766611,0.00099485,3274.6,3273.3,0.02746289]
[1767708766810,6.10865841,3274.6,3272.8,0.02746289]
[1767708767109,6.10865841,3274.6,3272.5,0.02746289]
[1767708767110,9.16249019,3274.6,3272.5,0.02746289]
[1767708767281,0.83717376,3274.5,3272.5,0.02746289]
[1767708767718,0.83717376,3274.5,3271.5,1.00146683]
[1767708768028,12.21597848,3274.4,3271.7,0.02746289]
[1767708768310,12.21597848,3274.4,3271.0,0.795]
[1767708768311,0.03817609,3274.3,3271.0,0.795]
[1767708768516,0.03817609,3274.3,3271.4,0.02746289]
[1767708768843,0.06563898,3274.3,3271.4,0.02746289]
[1767708769112,0.03817609,3274.3,3271.8,0.02746289]
[1767708769276,0.03817609,3274.3,3272.3,0.02746289]
[1767708769486,0.00099485,3274.6,3272.7,0.02746289]
[1767708769682,0.799,3274.5,3272.8,0.03055487]
[1767708769982,6.10798924,3274.4,3272.8,0.03055487]
[1767708770212,0.03620932,3274.3,3272.1,0.0580243]
[1767708771009,0.9402416,3274.3,3271.9,0.03056328]
[1767708771212,0.96770449,3274.3,3271.8,0.03056421]
[1767708771418,0.90403228,3274.1,3271.8,0.03056421]
[1767708771582,0.90403228,3273.9,3271.4,0.03056795]
[1767708771782,0.90403228,3273.5,3270.9,0.03057262]
[1767708771983,12.22008368,3273.3,3270.9,0.03057262]
[1767708772229,0.83520932,3273.2,3270.9,0.03057262]
[1767708772385,0.90403228,3273.1,3270.6,0.03057542]
[1767708772586,0.90403228,3272.7,3270.0,0.05804392]
[1767708772989,0.90403228,3272.7,3270.2,0.02746289]
[1767708773294,0.90403228,3272.7,3270.6,0.02746289]
[1767708773698,0.03620932,3273.1,3271.3,0.02746289]
[1767708773896,6.10966854,3273.5,3271.8,0.02746289]
[1767708774106,3.09135289,3273.2,3271.9,0.02746289]
[1767708774295,3.09135289,3273.2,3271.7,0.03056514]
[1767708774296,6.11028714,3273.2,3271.7,0.03056514]
[1767708774506,0.03620932,3273.1,3271.6,0.02746289]
[1767708774818,0.03620932,3273.1,3271.3,0.05803177]
[1767708774819,0.799,3273.0,3271.7,0.05802803]
[1767708775024,1.70303228,3272.9,3269.3,0.27164571]
[1767708775324,1.70303228,3272.9,3268.0,0.02746289]
[1767708775325,0.90403228,3269.2,3268.0,0.02746289]
[1767708775548,2.78967539,3272.8,3268.0,0.02746289]
[1767708775549,2.01360581,3269.1,3268.0,0.02746289]
[1767708775837,2.01360581,3269.1,3266.8,0.02746289]
[1767708775838,3.81775993,3268.2,3266.9,0.02746289]
[1767708775989,1.09070083,3267.1,3266.9,0.02746289]
[1767708776189,2.18165315,3267.9,3267.3,0.02746289]
[1767708776430,2.18165315,3267.6,3267.5,0.02746289]
[1767708776611,0.02746289,3268.1,3267.9,0.02746289]
[1767708776790,3.81775993,3268.9,3268.2,0.02746289]
[1767708776993,3.99450064,3270.4,3268.7,0.02746289]
[1767708776994,3.85708532,3270.1,3268.7,0.02746289]
[1767708777310,6.91517064,3270.1,3269.0,0.03058665]
[1767708777520,6.91517064,3270.1,3268.8,0.03058665]
[1767708777690,12.23234128,3270.1,3268.2,0.03058665]
[1767708777890,0.799,3270.0,3268.8,0.03058665]
[1767708778140,6.11639498,3269.9,3269.1,0.03058665]
[1767708778289,6.11639498,3269.9,3268.3,0.03058665]
[1767708778290,0.93671696,3269.4,3267.6,0.001]
[1767708778486,0.93671696,3269.2,3267.6,0.001]
[1767708778691,0.96730361,3268.7,3265.6,0.03058665]
[1767708778919,0.93671696,3268.5,3266.1,0.03058665]
[1767708779087,0.93671696,3268.5,3266.2,0.02448505]
[1767708779292,0.93671696,3268.5,3266.1,0.02448505]
[1767708779516,0.1735717,3268.4,3266.1,0.02448505]
[1767708779721,0.93671696,3268.2,3265.9,0.02448505]
[1767708780018,0.93671696,3268.2,3266.1,0.02448505]
[1767708780236,0.44400761,3269.2,3266.1,0.02448505]
[1767708780237,6.11976376,3268.1,3266.8,0.01836519]
[1767708780521,6.11976376,3268.1,3266.5,0.01836519]
[1767708780522,9.17964564,3268.1,3266.5,0.01836519]
[1767708780725,9.17964564,3268.1,3266.7,0.01836519]
[1767708780890,6.11976376,3268.1,3266.7,0.01836519]
[1767708781224,0.8,3268.6,3267.1,0.01836519]
[1767708781394,0.8,3268.6,3267.3,0.01836519]
[1767708781589,0.8,3268.6,3266.9,0.01836519]
[1767708781795,12.23578352,3269.1,3267.3,0.01836519]
[1767708781994,0.8,3268.6,3267.1,0.01836519]
[1767708782194,9.17852223,3268.5,3267.3,0.01836519]
[1767708782923,0.8,3268.4,3267.1,0.01836519]
[1767708783123,0.8,3268.4,3266.7,0.01836519]
[1767708783334,0.8,3268.3,3266.9,0.01836519]
[1767708783538,0.8,3268.3,3266.8,0.01836519]
[1767708784205,9.17936478,3268.2,3266.7,0.01836519]
[1767708784408,9.17936478,3268.2,3266.4,0.01836519]
[1767708784723,9.17936478,3268.2,3267.1,0.01836519]
[1767708785118,12.23915304,3268.2,3266.9,0.01836519]
[1767708785317,12.23915304,3268.2,3266.7,0.01836519]